{"text_format":"3","workbook":"xlsx","n_sheets":3,"sheets":["Spreieareal","Faktorer GDE","PT-Koder"],"not_rendered":{"external_links":1,"defined_names":4},"read":"whole","date_system":"1900"}

{"sheet":"Spreieareal","index":0,"n_rows":78,"n_cols":19,"rows_kept":78,"merged":[[3,3,3,8],[3,9,3,11],[3,13,3,16],[3,17,3,18],[4,9,4,10],[4,13,5,13],[5,5,5,6],[5,7,5,8],[5,9,5,11],[6,7,6,8],[6,9,6,11],[7,13,8,13],[7,16,8,18],[9,14,9,18],[10,5,10,7],[11,3,13,3],[11,5,11,7],[11,13,11,15],[11,16,11,18],[12,5,12,7],[12,13,12,14],[13,5,13,7],[13,13,13,14],[14,3,19,3],[14,5,14,7],[14,13,14,14],[15,5,15,7],[15,13,15,14],[16,5,16,7],[16,13,16,14],[17,5,17,7],[17,13,17,14],[18,5,18,7],[18,13,18,14],[19,5,19,7],[19,13,19,14],[20,3,22,3],[20,5,20,7],[20,13,20,17],[21,5,21,7],[22,5,22,7],[22,13,22,16],[22,17,22,18],[23,3,25,3],[23,5,23,7],[24,5,24,7],[25,5,25,7],[26,3,31,3],[31,5,31,7],[32,3,39,3],[33,13,33,14],[35,5,35,7],[35,13,35,14],[35,15,35,18],[36,5,36,7],[36,13,37,13],[36,14,37,14],[36,15,37,15],[36,16,36,17],[36,18,37,18],[37,5,37,7],[38,5,38,7],[39,5,39,7],[40,3,41,3],[40,5,40,7],[41,5,41,7],[42,3,42,9],[42,10,42,11]]}
[]
[]
[]
[{"$nulls":3},"Spredeareal (Forskrift organisk gjødsel - FOR-2003-07-04-951) i",{"$nulls":9},"Oppsummering",{"$nulls":3},{"$f":"TODAY()","v":"2018-07-05"}]
[{"$nulls":3},"på foretaket:",{"$nulls":5},"Kommune",{"$nulls":3},"GDE","Brutto GDE"," + Kjøp","- Salg","Red. beite","Netto GDE"]
[{"$nulls":14},{"$f":"K43","v":0},{"$f":"S34","v":0},{"$f":"Q34","v":0},{"$f":"S21","v":0},{"$f":"IF(O6+P6-Q6-R6<0,0,O6+P6-Q6-R6)","v":0}]
[{"$nulls":3},"Gnr.","Bnr.","Navn",null,"Postnr.",null,"Poststed"]
[{"$nulls":13},"Areal","Arealbehov",{"$f":"S6*4","v":{"v":0,"d":"0.0"}},{"$f":"CONCATENATE(J53,\" \",J55)","v":"Det gjenstår 0 daa spredeareal"}]
[{"$nulls":14},"Spredeareal",{"$f":"S43","v":{"v":0,"d":"0.0"}}]
[{"$nulls":13},"Kommentar"]
[{"$nulls":3},"Dyr","Kode","Type",null,null,"Faktor","1. mars","1. okt","GDE"]
[{"$nulls":3},"Hester",115,"Hester, under 3 år (i avl eller ikke)",null,null,2,null,null,{"$f":"IF(J12&K12=\"\",\"\",(J12+K12)/2/I12)","v":""},null,"Reduksjon beitepraksis",null,null,"Beite utenom godkjent spredeareal"]
[{"$nulls":4},116,"Hester, 3 år og eldre  (i avl eller ikke)",null,null,2,null,null,{"$f":"IF(J13&K13=\"\",\"\",(J13+K13)/2/I13)","v":""},null,"DYR PÅ BEITE",null,"Faktor","Ant. dyr","Ant uker","GDE"]
[{"$nulls":4},193,"Hester i pensjon i beitesesongen",null,null,2,null,null,"",null,"Melkeku: ute dag og natt",null,0.019,null,null,{"$f":"P14*Q14*R14","v":0}]
[{"$nulls":3},"Storfe",120,"Melkekyr, kalva i de siste 15 måneder",null,null,1,null,null,"",null,"Melkeku: ute kun dag",null,{"v":0.01,"d":"0.010"},null,null,{"$f":"P15*Q15*R15","v":0}]
[{"$nulls":4},120,"Melkekyr (bevaringsrase), kalva siste 18 mnd",null,null,1,null,null,"",null,"Ungdyr",null,0.006,null,null,0]
[{"$nulls":4},121,"Ammekyr, kalvet de siste 15 måneder",null,null,1.5,null,null,"",null,"Ammekyr",null,0.013,null,null,0]
[{"$nulls":4},121,"Ammekyr (bevaringsrase), kalva siste 18 mnd",null,null,1.5,null,null,"",null,"Hest",null,{"v":0.01,"d":"0.010"},null,null,0]
[{"$nulls":4},119,"Øvrige storfe ",null,null,3,null,null,{"$f":"IF(J19&K19=\"\",\"\",(J19+K19)/2/I19)","v":""},null,"Vinterfòra sau eller geit",null,0.003,null,null,0]
[{"$nulls":4},120,"Jerseyku",null,null,1.3,null,null,"",null,"Red. kontraktprod. egg",null,8.3e-05,null,null,0]
[{"$nulls":3},"Sauer",145,"Søyer, født i fjor eller tidligere",null,null,7,null,null,{"$f":"IF(J21=\"\",\"\",J21/I21)","v":""},null,"Sum GDE reduksjon på beite",{"$nulls":4},{"$f":"SUM(S14:S20)","v":0}]
[{"$nulls":4},146,"Værer, født i fjor eller tidligere ",null,null,7,null,null,{"$f":"IF(J22=\"\",\"\",J22/I22)","v":""}]
[{"$nulls":4},139,"Melkesau, født i fjor eller tidligere ",null,null,7,null,null,{"$f":"IF(J23=\"\",\"\",J23/I23)","v":""},null,"Salg / kjøp husdyrgjødsel (m3)",{"$nulls":3},"NB: Signert kvittering"]
[{"$nulls":3},"Geiter",140,"Melkegeiter ",null,null,7,null,null,{"$f":"IF(J24&K24=\"\",\"\",(J24+K24)/2/I24)","v":""},null,"DYRESLAG","Faktor","Salg (m3)","Salg GDE","Kjøp (m3)","Kjøp GDE"]
[{"$nulls":4},142,"Ammegeiter ",null,null,7,null,null,"",null,"Melkeku",0.05,null,{"$f":"O25*P25","v":0},null,{"$f":"R25*O25","v":0}]
[{"$nulls":4},144,"Bukker og ungdyr (inkl. kje) ",null,null,7,null,null,{"$f":"IF(J26&K26=\"\",\"\",(J26+K26)/2/I26)","v":""},null,"Ungdyr",0.05,null,{"$f":"O26*P26","v":0},null,{"$f":"R26*O26","v":0}]
[{"$nulls":3},"Griser",155,"Avlspurker, minst ett kull ","Fytase","Ja",{"$f":"IF(H27=\"Ja\",3,2.5)","v":3},null,null,{"$f":"IF(J27&K27=\"\",\"\",(J27+K27)/2/I27)","v":""},null,"Hest",0.05,null,0,null,0]
[{"$nulls":4},156,"Råner i avl ","Fytase","Ja",{"$f":"IF(H28=\"Ja\",3,2.5)","v":3},null,null,"",null,"Svin",0.08,null,0,null,0]
[{"$nulls":4},157,"Slaktegriser, minst 20 kg","Fytase","Ja",{"$f":"IF(H29=\"Ja\",20,18)","v":20},null,null,{"$f":"IF(K29=\"\",\"\",K29/I29)","v":""},null,"Sau",0.07,null,0,null,0]
[{"$nulls":4},157,"Griser til avlsdyr, 20-50 kg ","Fytase","Ja",{"$f":"IF(H30=\"Ja\",20,18)","v":20},null,null,{"$f":"IF(J30&K30=\"\",\"\",(J30+K30)/2/I30)","v":""},null,"Geit",0.07,null,0,null,0]
[{"$nulls":4},184,"Slakta gris","Fytase","Ja",{"$f":"IF(H31=\"Ja\",20,18)","v":20},null,null,"",null,"Fjørfe TS < 33% ",0.16,null,0,null,0]
[{"$nulls":4},"158-159","Ungpurker/råner >50 kg/>15 uker, avl",null,null,8,null,null,"",null,"Fjørfe TS > 33% ",0.36,null,0,null,0]
[{"$nulls":3},"Fjørfe",160,"Verpehøner, 20 uker og eldre ","Fytase","Ja",{"$f":"IF(H33=\"Ja\",100,80)","v":100},null,null,"",null,"Pelsdyr",{"v":0.2,"d":"0.20"},null,0,null,0]
[{"$nulls":4},175,"Livkylling, påsatt til verpehøns ","Fytase","Ja",{"$f":"IF(H34=\"Ja\",690,550)","v":690},null,null,{"$f":"IF(K34=\"\",\"\",K34/I34)","v":""},null,"Sum salg/kjøp",null,"Salg",{"$f":"SUM(Q25:Q33)","v":0},"Kjøp",{"$f":"SUM(S25:S33)","v":0}]
[{"$nulls":4},176,"Slaktekyllinger (egne avregninger)","Fytase","Ja",{"$f":"IF(H35=\"Ja\",1750,1400)","v":1750},null,null,{"$f":"IF(K35=\"\",\"\",K35/I35)","v":""}]
[{"$nulls":4},168,"Avlsdyr ender og kalkuner",null,null,40,null,null,{"$f":"IF(J36&K36=\"\",\"\",(J36+K36)/2/I36)","v":""},null,"Spredeareal",null,"Må være godkjent av landbrukskontoret"]
[{"$nulls":4},168,"Avlsdyr gjess ",null,null,20,null,null,{"$f":"IF(J37&K37=\"\",\"\",(J37+K37)/2/I37)","v":""},null,"Eierforhold","Dyrka jord","Overflate-dyrka","Omregnet",null,"Sum"]
[{"$nulls":4},174,"Slakteender",null,null,300,null,null,{"$f":"IF(K38=\"\",\"\",K38/I38)","v":""},{"$nulls":4},"Beite","Frukth. oa"]
[{"$nulls":4},174,"Slaktekalkuner",null,null,240,null,null,{"$f":"IF(K39=\"\",\"\",K39/I39)","v":""},null,"Egen gård",{"$nulls":4},{"$f":"SUM(O39:R39)","v":0}]
[{"$nulls":4},174,"Slaktegjess",null,null,150,null,null,"",null,"Leid gård 1",{"$nulls":4},{"$f":"SUM(O40:R40)","v":0}]
[{"$nulls":3},"Pels",170,"Minktisper ",null,null,40,null,null,{"$f":"IF(K41=\"\",\"\",K41/I41)","v":""},null,"Leid gård 2",{"$nulls":4},0]
[{"$nulls":4},171,"Revetisper ",null,null,25,null,null,{"$f":"IF(K42=\"\",\"\",K42/I42)","v":""},null,"Leid gård 3",{"$nulls":4},{"$f":"SUM(O42:R42)","v":0}]
[{"$nulls":3},"Brutto GDE:",{"$nulls":6},{"$f":"SUM(L12:L42)","v":0},null,null,"Sum",{"$f":"SUM(O39:O42)","v":0},{"$f":"SUM(P39:P42)","v":0},0,0,{"$f":"SUM(S39:S42)","v":0}]
{"$rows_empty":9}
[{"$nulls":5},"Bjerkreim",{"$nulls":3},{"$f":"IF(P8>P9,\"Det mangler \",\"Det gjenstår\")","v":"Det gjenstår"},{"$f":"IF(P8>P9,P8-P9,ROUND(IF(P8>P9,P8-P9,P9-P8),1))","v":{"v":0,"d":"0.0"}}]
[{"$nulls":5},"Bokn"]
[{"$nulls":5},"Eigersund",{"$nulls":3},{"$f":"CONCATENATE(IF(P8>P9,ROUND(P8-P9,1),ROUND(K53,1)),\" daa spredeareal\")","v":"0 daa spredeareal"}]
[{"$nulls":5},"Finnøy"]
[{"$nulls":5},"Forsand"]
[{"$nulls":5},"Gjesdal"]
[{"$nulls":5},"Haugesund"]
[{"$nulls":5},"Hjelmeland"]
[{"$nulls":5},"Hå"]
[{"$nulls":5},"Karmøy"]
[{"$nulls":5},"Klepp"]
[{"$nulls":5},"Kvitsøy"]
[{"$nulls":5},"Lund"]
[{"$nulls":5},"Randaberg"]
[{"$nulls":5},"Rennesøy"]
[{"$nulls":5},"Sandnes"]
[{"$nulls":5},"Sauda"]
[{"$nulls":5},"Sokndal"]
[{"$nulls":5},"Sola"]
[{"$nulls":5},"Stavanger"]
[{"$nulls":5},"Strand"]
[{"$nulls":5},"Suldal"]
[{"$nulls":5},"Time"]
[{"$nulls":5},"Tysvær"]
[{"$nulls":5},"Utsira"]
[{"$nulls":5},"Vindafjord"]

{"sheet":"Faktorer GDE","index":1,"n_rows":34,"n_cols":21,"rows_kept":34,"hidden":true,"merged":[[3,4,3,10],[3,18,3,20],[4,6,4,7],[4,19,4,20],[5,19,6,19],[5,20,6,20]]}
[]
[]
[]
[{"$nulls":4},"Faktorer for utreikning av spreieareal",{"$nulls":13},"Fra forskrift om organiske gjødselvarer"]
[{"$nulls":6},"Antall/GDE",{"$nulls":12},"Antall dyr pr. GDE"]
[{"$nulls":4},"Kode","DYRESLAG","Uten fytase","Med fytase",null,"DYRESLAG PÅ BEITE","Faktor",{"$nulls":8},"Kategori I","Kategori II\n(med fytase el.l)"]
[{"$nulls":4},114,"Avlshester",2,null,null,"Melkeku: ute dag / natt",{"v":0.019,"d":"0.0190"},{"$nulls":7},"Dyreslag"]
[{"$nulls":4},112,"Andre hester",2,null,null,"Melkeku: ute kun dag",{"v":0.01,"d":"0.0100"},{"$nulls":7},"Melkekyr",1,"-"]
[{"$nulls":4},120,"Melkekyr",1,null,null,"Ungdyr",{"v":0.006,"d":"0.0060"},{"$nulls":7},"Jerseyfe",1.3,"-"]
[{"$nulls":4},"122-125","Ungdyr",3,null,null,"Ammekyr",{"v":0.013,"d":"0.0130"},{"$nulls":7},"Ungdyr storfe",3,"-"]
[{"$nulls":4},121,"Ammekyr",1.5,null,null,"Hest",{"v":0.01,"d":"0.0100"},{"$nulls":7},"Ammekyr",1.5,"-"]
[{"$nulls":5},"Jerseyku",1.3,null,null,"Vinterf. sau/geit",{"v":0.003,"d":"0.0030"},{"$nulls":7},"Voksne hester",2,"-"]
[{"$nulls":5},"Ungdyr, jersyku",4,null,null,"Red. kontrakt. egg",8.3e-05,{"$nulls":7},"Avlspurker/råner",2.5,3]
[{"$nulls":5},"V.fora sau og lam i avl",7,{"$nulls":11},"Slaktegriser*",18,20]
[{"$nulls":5},"v. fora sau ikkje i avl",7,null,null,"DYRESLAG salg/kjøp","Faktor",{"$nulls":7},"Sauer/geiter (vinterfôret)",7,"-"]
[{"$nulls":4},140,"Melkegeiter",7,null,null,"Melkeku",0.05,{"$nulls":7},"Avlstisper rev (med valper)",25,"-"]
[{"$nulls":4},142,"Ammegeiter",7,null,null,"Ungdyr",0.05,{"$nulls":7},"Avlstisper mink (med valper)",40,"-"]
[{"$nulls":4},141,"Andre geiter",7,null,null,"Hest",0.05,{"$nulls":7},"Verpehøns",80,100]
[{"$nulls":4},155,"Avlspurker",2.5,3,null,"Svin",0.08,{"$nulls":7},"Slaktekyllinger*",1400,1750]
[{"$nulls":4},156,"Avlsråner",2.5,3,null,"Sau",0.07,{"$nulls":7},"Livkyllinger**",550,690]
[{"$nulls":4},152,"Slaktegriser ",18,20,null,"Geit",0.07,{"$nulls":7},"Kalkuner, avlsdyr",40,50]
[{"$nulls":4},160,"Verpehøner",80,100,null,"Fjørfe, TS% < 33%",0.16,{"$nulls":7},"Kalkuner, slaktedyr*",240,300]
[{"$nulls":4},161,"Livkyllinger",550,690,null,"Fjørfe, TS% > 33%",0.36,{"$nulls":7},"Kaniner, avlsdyr",40,"-"]
[{"$nulls":4},162,"Sl.kylling",1400,1750,null,"Pelsdyr",{"v":0.2,"d":"0.20"},{"$nulls":7},"Kaniner, slaktedyr*",600,"-"]
[{"$nulls":4},163,"Ender, slakt",300,{"$nulls":11},"Ender, avlsdyr",40,"-"]
[{"$nulls":4},164,"Kalkun, slakt",240,{"$nulls":11},"Ender, slaktedyr*",300,"-"]
[{"$nulls":4},169,"Gjess for slakt",150,{"$nulls":11},"Gjess, avlsdyr",20,"-"]
[{"$nulls":5},"Kanin, slaktedyr",600,{"$nulls":11},"Gjess, slaktedyr*",150,"-"]
[{"$nulls":4},168,"Gjess, avlsdyr",20,{"$nulls":11},"*","For dyr som har en kort oppfôringstid "]
[{"$nulls":4},168,"Kalkun, avlsdyr",40,{"$nulls":12},"beregnes antall gjødseldyrenheter ut "]
[{"$nulls":4},168,"Ender, avlsdyr",40,{"$nulls":12},"fra antall slaktede dyr pr. år."]
[{"$nulls":4},180,"Kanin, avlsdyr",40]
[{"$nulls":4},170,"Mink/ilder tisper",40,{"$nulls":11},"**","For livkyllinger beregnes antall gjødsel-"]
[{"$nulls":4},171,"Blå-/sølvrevtisper",25,{"$nulls":12},"dyrenheter ut fra antall leverte dyr pr. år."]

{"sheet":"PT-Koder","index":2,"n_rows":49,"n_cols":4,"rows_kept":49,"merged":[[1,0,3,0],[4,0,7,0],[8,0,11,0],[12,0,14,0],[15,0,20,0],[21,0,26,0],[27,0,28,0],[29,0,36,0],[37,0,44,0],[45,0,48,0]]}
["Dyreslag","Kode","Type","Informasjon"]
["Hester",115,"Hester, under 3 år ","Hester under 3 år som foretaket disponerer. Hester som foretaket holder i pensjon i vinterhalvåret mot godtgjørelse regnes også som disponert av foretaket når foretaket har ansvaret for stellet av hestene. Skriftlig avtale med eieren skal legges ved søknaden. Hester som oppstalles hos foretaket, men der eieren har det daglige ansvaret for hestene, regnes ikke som hester i pensjon i vinterhalvåret."]
[null,116,"Hester, 3 år og eldre ","Hester over 3 år som foretaket disponerer. Hester som foretaket holder i pensjon i vinterhalvåret mot godtgjørelse regnes også som disponert av foretaket når foretaket har ansvaret for stellet av hestene. Skriftlig avtale med eieren skal legges ved søknaden. Hester som oppstalles hos foretaket, men der eieren har det daglige ansvaret for hestene, regnes ikke som hester i pensjon i vinterhalvåret."]
[null,193,"Hester i pensjon i beitesesongen, skriftlig avtale vedlegges søknaden ","Hester i pensjon i beitesesongen skal bare registreres i oktober. Skriftlig avtale skal legges ved søknaden. Du kan laste opp avtalen i seksjonen \"Vedlegg\"."]
["Storfe",120,"Melkekyr, som har kalvet i løpet av de siste 15 måneder (18 måneder for kyr av bevaringsverdig rase) ","Kyr som er i melkeproduksjon hos foretak som enten har disponibel melkekvote eller lokalforedlingskvote, og som har kalvet i løpet av de siste 15 månedene (18 måneder for kyr av bevaringsverdig rase og som er berettiget tilskudd for bevaringsverdige husdyrraser)."]
[null,121,"Ammekyr, som har kalvet i løpet av de siste 15 måneder (18 måneder for kyr av bevaringsverdig rase) ","Kyr som ikke er melkekyr (se forklaring til  120), og som har kalvet i løpet av de siste 15 måneder (18 måneder for kyr av bevaringsverdig rase og som er berettiget tilskudd for bevaringsverdige husdyrraser)."]
[null,118,"Herav kyr av minst 50% kjøttferase ","Bare ammekyr som er minst 50 prosent kjøttferase skal føres opp i  118."]
[null,119,"Øvrige storfe ","Her føres storfe som ikke er melkeku ( 120) eller ammku ( 121) dvs. kalver, ungokser, okser, kviger og kyr som ikke har kalvet siste 15 måneder (18 måneder for kyr av bevaringsverdig rase og som er berettiget tilskudd for bevaringsverdige husdyrraser). Her føres også kyr som har kalvet i løpet av de siste 15 (18) måneder, men som ikke oppfyller kravet til vanlig jordbruksproduksjon. Se omtale av vanlig jordbruksproduksjon i ."]
["Sauer",145,"Søyer, født i fjor eller tidligere. ","Søyer født i fjor eller tidligere skal bare registreres i mai. Både vinterfôra og utegangersøyer skal føres i denne n. Du skal ikke føre opp melkesau i denne n."]
[null,146,"Værer, født i fjor eller tidligere ","Værer født i fjor eller tidligere skal bare registreres i mai. Både vinterfôra værer og utegangerværer skal føres i denne n."]
[null,139,"Melkesau, født i fjor eller tidligere ","Sauer født i fjor eller tidligere, og som er i melkeproduksjon hvor melken nyttes som råstoff ved lokal foredling. Foretaket må kunne dokumentere at melka nyttes som råstoff ved lokal foredling."]
[null,138,"Lam født i år ","Lam født i år skal ikke registreres i mai."]
["Geiter",140,"Melkegeiter ","Geiter som har kjeet og som er i melkeproduksjon hos foretak som enten har disponibel kvote eller lokalforedlingskvote, inkludert geiter i sinperiode før start på neste laktasjon."]
[null,142,"Ammegeiter ","Geiter som har kjeet minst en gang og som ikke er melkegeiter (se forklaring til  140)."]
[null,144,"Bukker og ungdyr, medregnet kje ","Her føres alle andre geiter enn de som føres under  140 eller 142. Dvs. kje, bukker og ungdyr som ikke har kjeet."]
["Griser",155,"Avlspurker som har fått minst ett kull ","Inkluderer både griser, villsvin og villsvinkrysninger"]
[null,156,"Råner som er satt inn i avl ","Inkluderer både griser, villsvin og villsvinkrysninger"]
[null,158,"Ungpurker bestemt for avl, levendevekt minst 50 kg eller eldre enn 15 uker ","Inkluderer både griser, villsvin og villsvinkrysninger"]
[null,159,"Ungråner bestemt for avl, levendevekt minst 50 kg eller eldre enn 15 uker ","Inkluderer både griser, villsvin og villsvinkrysninger"]
[null,154,"Smågriser, levendevekt under 20 kg eller alder inntil 8 uker ","Inkluderer både griser, villsvin og villsvinkrysninger"]
[null,157,"Slaktegriser, levendevekt minst 20 kg. Griser påsatt til avlsdyr, levendevekt 20-50 kg ","Inkluderer både griser, villsvin og villsvinkrysninger"]
["Fjørfe",160,"Verpehøner, 20 uker og eldre ","Ved opphold mellom to innsett for verpehøner på telledato (1. mai 2017 og 1. oktober 2017), kan antall høner ved forrige telledato føres i  160. Dette gjelder både for foretak med konsumeggproduksjon og for foretak med rugeeggproduksjon. Foretaket må ha kontrakt om kjøp av nye høner, og oppholdsperioden kan maksimalt være 12 uker. Oppholdsperioden regnes fra slakting til høner i nytt kull er 20 uker gamle."]
[null,"x",null,"Ved overproduksjon av egg kan førtidsslakting av høns iverksettes . Når førtidsslaktingen gjennomføres etter vedtak fattet av Omsetningsrådet, kan det for produksjon som omfattes av markedsregulering gis tilskudd for høns selv om oppholdsperioden mellom to innsett blir lenger enn 12 uker."]
[null,168,"Avlsdyr av ender, kalkuner og gjess ","Avlsdyr av ender, kalkuner og gjess"]
[null,175,"Livkyllinger, påsatt til verpehøns ","Livkyllinger, påsatt til verpehøns"]
[null,176,"Slaktekyllinger ","Antall slaktekyllinger på telledato"]
[null,174,"Ender, kalkuner og gjess for slakt ","Ender, kalkuner og gjess for slakt"]
["Pelsdyr",170,"Minktisper ","Minktisper"]
[null,171,"Revetisper ","Revetisper"]
["Andre husdyr",178,"Hjort, 1 år og eldre ","I oppdrett for kjøttproduksjon og som går i inngjerdet hegn."]
[null,179,"Hjort, under 1 år ","I oppdrett for kjøttproduksjon og som går i inngjerdet hegn."]
[null,180,"Kaniner, hunndyr, minst ett kull ","Hunnkaniner som har født og som benyttes i kjøtt- eller ullproduksjon."]
[null,183,"Struts ","Struts"]
[null,192,"Esel ","Esel"]
[null,194,"Bikuber i produksjon ","Bikuber skal ikke registreres før i oktober."]
[null,196,"Lama ","Lama"]
[null,197,"Alpakka ","Alpakka"]
["Økologiske dyr",801,"Melkekyr (økologisk) ","Før opp antall økologiske melkekyr og melkekyr i karens fra  120. Foretaket må være tilknyttet Debios kontroll-ordning, og produksjonen må være godkjent av Debio før tilskudd for økologisk produksjon kan utbetales."]
[null,802,"Ammekyr (økologisk) ","Før opp antall økologiske ammekyr og ammekyr i karens fra  121. Foretaket må være tilknyttet Debios kontroll-ordning, og produksjonen må være godkjent av Debio før tilskudd for økologisk produksjon kan utbetales."]
[null,803,"Øvrige storfe (økologisk) ","Før opp antall økologiske storfe og storfe i karens fra  119. Foretaket må være tilknyttet Debios kontrollordning, og produksjonen må være godkjent av Debio før tilskudd for økologisk produksjon kan utbetales."]
[null,830,"Avlsgriser (økologisk) ","Summen av antall økologiske avlsgriser / avlsgriser i karens fra  155 og 156. Foretaket må være tilknyttet Debios kontrollordning, & produksjonen må være godkjent av Debio før tilskudd for økologisk produksjon kan utbetales."]
[null,810,"Melkegeiter ","Antall økologiske melkegeiter og melkegeiter i karens fra  140. Foretaket må være tilknyttet Debios kontroll-ordning, og produksjonen må være godkjent av Debio før tilskudd for økologisk produksjon kan utbetales."]
[null,841,"Verpehøner, 20 uker og eldre ","Økologiske verpehøner og verpehøner i karens fra  160  tas med i beregning tilskuddsberettiga grovfôrareal. Må være tilknyttet Debios kontrollordning. Produksjonen : være godkjent av Debio før dem tas med i beregninga"]
[null,811,"Ammegeiter ","Antall økologiske ammegeiter og ammegeiter i karens fra  142. Foretaket må være tilknyttet Debios kontroll-ordning, og produksjonen må være godkjent av Debio før tilskudd for økologisk produksjon kan utbetales."]
[null,821,"Sauer, alle sauer født i fjor eller tidligere. ","Før opp antall økologiske sauer og sauer i karens fra  145, 146 og 139. Foretaket må være tilknyttet Debios kontroll-ordning, og produksjonen må være godkjent av Debio før tilskudd for økologisk produksjon kan utbetales."]
["Livdyr",181,"Griser solgt som livdyr, levendevekt minst 50 kg ","Antall griser solgt som livdyr i løpet av søknadsåret. Hvis du har solgt livdyr etter søknadsfristen i oktober, kan antallet etterrapporteres fram til 10. januar."]
[null,833,"Økologiske griser solgt som livdyr, levendevekt minst 50 kg ","Økologisk produksjon: inspisert & godkjent av Debio før utbetaling av tilsk. Ant. økologiske griser solgt som livdyr i løpet av søknadsåret. Er livdyr solgt livdyr etter søkn.fristen i oktober, kan ant. etterrapporteres fram til 10. januar."]
[null,185,"Livkyllinger, påsatt til verpehøns, livkalkuner, solgt inneværende år ","Livkyllinger er kyllinger solgt som livdyr i søknadsåret. Gjelder ikke kyllinger som blir solgt fra klekkeri til slaktekyllingprodusenter. Livkalkuner er kalkuner på inntil 28 uker, solgt som livdyr. Hvis du har solgt livdyr etter søknadsfristen i oktober, kan antallet etterrapporteres fram til 10. januar."]
[null,null,"Slakta griser, kyllinger, gjess, kalkuner og ender"]